[Event "Late-Titled-Tuesday-Blitz-April-16-2024"]
[Site "Chess.com"]
[Date "2024.04.16"]
[Round "1"]
[White "flawian2008"]
[Black "martinmena"]
[Result "1-0"]
[WhiteElo "2557"]
[BlackElo "2173"]
[TimeControl "180+1"]
[EndTime "14:06:51 PDT"]
[Termination "flawian2008 won by resignation"]

1. e4 {[%clk 0:02:58.1]} 1... c6 {[%clk 0:02:54]} 2. d4 {[%clk 0:02:57.8]} 2...
d5 {[%clk 0:02:54.9]} 3. Nc3 {[%clk 0:02:58.5]} 3... dxe4 {[%clk 0:02:48]} 4.
Nxe4 {[%clk 0:02:59.4]} 4... Nd7 {[%clk 0:02:45.6]} 5. Bc4 {[%clk 0:02:55.3]}
5... Ngf6 {[%clk 0:02:42.4]} 6. Ng5 {[%clk 0:02:53.5]} 6... e6 {[%clk
0:02:38.9]} 7. N1f3 {[%clk 0:02:53.7]} 7... h6 {[%clk 0:02:33.7]} 8. Nh3 {[%clk
0:02:28.3]} 8... Nb6 {[%clk 0:02:25.1]} 9. Bb3 {[%clk 0:02:23.6]} 9... Bd6
{[%clk 0:02:24.3]} 10. O-O {[%clk 0:02:20.1]} 10... O-O {[%clk 0:02:18.8]} 11.
Nf4 {[%clk 0:02:20.5]} 11... Nbd5 {[%clk 0:02:06.4]} 12. Ne5 {[%clk 0:02:16.6]}
12... Nd7 {[%clk 0:01:52.3]} 13. c4 {[%clk 0:02:10]} 13... Ne7 {[%clk
0:01:11.7]} 14. Re1 {[%clk 0:02:04.8]} 14... Qc7 {[%clk 0:01:07.4]} 15. Nfd3
{[%clk 0:02:03.5]} 15... Rd8 {[%clk 0:00:57]} 16. Qh5 {[%clk 0:01:52.7]} 16...
Bxe5 {[%clk 0:00:44.2]} 17. Nxe5 {[%clk 0:01:53.6]} 17... Nxe5 {[%clk 0:00:43]}
18. dxe5 {[%clk 0:01:54.5]} 18... Ng6 {[%clk 0:00:24.1]} 19. f4 {[%clk
0:01:48.9]} 19... Rd3 {[%clk 0:00:10.7]} 20. Bc2 {[%clk 0:01:44.7]} 20... Qb6+
{[%clk 0:00:10.4]} 21. Kh1 {[%clk 0:01:38.5]} 21... Qf2 {[%clk 0:00:10]} 22. Qe2
{[%clk 0:01:38.8]} 22... Qxe2 {[%clk 0:00:07.3]} 23. Rxe2 {[%clk 0:01:39.7]}
23... Rd4 {[%clk 0:00:07.7]} 24. Be3 {[%clk 0:01:34.7]} 24... Rxc4 {[%clk
0:00:07.2]} 25. Rd1 {[%clk 0:01:34.9]} 25... Kh7 {[%clk 0:00:01.8]} 26. Rd8
{[%clk 0:01:28.8]} 26... b6 {[%clk 0:00:01.3]} 27. h4 {[%clk 0:01:22.3]} 27...
Bb7 {[%clk 0:00:01.5]} 28. Rxa8 {[%clk 0:01:21.3]} 28... Bxa8 {[%clk 0:00:02.4]}
29. h5 {[%clk 0:01:22.1]} 29... Rxc2 {[%clk 0:00:02.6]} 30. hxg6+ {[%clk
0:01:22.2]} 30... Kxg6 {[%clk 0:00:03.1]} 31. Rxc2 {[%clk 0:01:22.9]} 31... c5
{[%clk 0:00:04]} 32. Rd2 {[%clk 0:01:22.4]} 32... Bd5 {[%clk 0:00:04.7]} 33. a3
{[%clk 0:01:18.3]} 33... Kf5 {[%clk 0:00:02.6]} 34. Kg1 {[%clk 0:01:17.8]} 34...
h5 {[%clk 0:00:02.5]} 35. Kf2 {[%clk 0:01:18.1]} 35... g6 {[%clk 0:00:02.9]} 36.
b4 {[%clk 0:01:17.9]} 36... c4 {[%clk 0:00:02.7]} 37. a4 {[%clk 0:01:12.4]}
37... c3 {[%clk 0:00:02.8]} 38. Rc2 {[%clk 0:01:10.7]} 38... Bb3 {[%clk
0:00:03.2]} 39. Rxc3 {[%clk 0:01:11.4]} 39... Bxa4 {[%clk 0:00:04.1]} 40. Rc7
{[%clk 0:01:11.8]} 40... a5 {[%clk 0:00:02.5]} 41. Rxf7+ {[%clk 0:01:11.2]}
41... Kg4 {[%clk 0:00:01.6]} 42. bxa5 {[%clk 0:01:11.2]} 42... bxa5 {[%clk
0:00:01.6]} 43. Rf6 {[%clk 0:01:09.7]} 43... Bc2 {[%clk 0:00:02]} 44. Rxe6
{[%clk 0:01:09.7]} 44... Bf5 {[%clk 0:00:02.8]} 45. Ra6 {[%clk 0:01:09.4]} 1-0

[Event "Late-Titled-Tuesday-Blitz-April-16-2024"]
[Site "Chess.com"]
[Date "2024.04.16"]
[Round "1"]
[White "Navyblue1"]
[Black "m_ezat"]
[Result "0-1"]
[WhiteElo "2248"]
[BlackElo "2587"]
[TimeControl "180+1"]
[EndTime "14:06:55 PDT"]
[Termination "m_ezat won by resignation"]

1. d4 {[%clk 0:02:56.5]} 1... Nf6 {[%clk 0:02:58.3]} 2. c4 {[%clk 0:02:54.3]}
2... g6 {[%clk 0:02:58.1]} 3. Nc3 {[%clk 0:02:52.5]} 3... Bg7 {[%clk 0:02:58.1]}
4. e4 {[%clk 0:02:51]} 4... d6 {[%clk 0:02:58.2]} 5. Bg5 {[%clk 0:02:48.2]} 5...
O-O {[%clk 0:02:56.6]} 6. Be2 {[%clk 0:02:47.2]} 6... c5 {[%clk 0:02:55]} 7. d5
{[%clk 0:02:18.4]} 7... e6 {[%clk 0:02:53.7]} 8. Nf3 {[%clk 0:02:10.4]} 8...
exd5 {[%clk 0:02:24.3]} 9. exd5 {[%clk 0:02:11.3]} 9... Re8 {[%clk 0:02:22.7]}
10. O-O {[%clk 0:02:09]} 10... Qb6 {[%clk 0:02:21.8]} 11. Qd2 {[%clk 0:01:45.2]}
11... Bf5 {[%clk 0:02:10.4]} 12. Rfe1 {[%clk 0:01:30.3]} 12... Nbd7 {[%clk
0:02:08.4]} 13. Bd3 {[%clk 0:00:47]} 13... Bxd3 {[%clk 0:02:01.3]} 14. Qxd3
{[%clk 0:00:46.7]} 14... Ng4 {[%clk 0:01:58.8]} 15. Qc2 {[%clk 0:00:20.7]} 15...
Qb4 {[%clk 0:01:45]} 16. h3 {[%clk 0:00:19.7]} 16... Nge5 {[%clk 0:01:43.4]} 17.
Nxe5 {[%clk 0:00:19.6]} 17... Nxe5 {[%clk 0:01:43]} 18. Re4 {[%clk 0:00:17.5]}
18... f5 {[%clk 0:01:38.8]} 19. a3 {[%clk 0:00:17]} 19... Qa5 {[%clk 0:01:36.1]}
20. Rh4 {[%clk 0:00:16.3]} 20... Nf7 {[%clk 0:01:33]} 21. Be3 {[%clk 0:00:13.2]}
21... Bf6 {[%clk 0:01:32.1]} 22. Rf4 {[%clk 0:00:12.8]} 22... Bg5 {[%clk
0:01:13.6]} 23. Rf3 {[%clk 0:00:12.3]} 23... Bxe3 {[%clk 0:01:12.9]} 24. Rxe3
{[%clk 0:00:12.5]} 24... Rxe3 {[%clk 0:01:11.8]} 25. fxe3 {[%clk 0:00:13.4]}
25... Ne5 {[%clk 0:01:12.2]} 26. Nb5 {[%clk 0:00:13.3]} 26... Qb6 {[%clk
0:01:11.5]} 27. a4 {[%clk 0:00:11.7]} 27... a6 {[%clk 0:01:10.9]} 28. Na3 {[%clk
0:00:11.9]} 28... Qb4 {[%clk 0:01:09.8]} 29. Rd1 {[%clk 0:00:12]} 29... Re8
{[%clk 0:01:07.8]} 30. Rc1 {[%clk 0:00:12.2]} 30... Nf7 {[%clk 0:01:06.3]} 31.
Qc3 {[%clk 0:00:11.1]} 31... Qxa4 {[%clk 0:01:03.8]} 32. Rf1 {[%clk 0:00:11]}
32... Qd7 {[%clk 0:00:59.1]} 33. Kh1 {[%clk 0:00:10.4]} 33... Ng5 {[%clk
0:00:57.8]} 34. b4 {[%clk 0:00:10.1]} 34... Ne4 {[%clk 0:00:57.6]} 35. Qb2
{[%clk 0:00:10.3]} 35... Ng3+ {[%clk 0:00:57]} 36. Kg1 {[%clk 0:00:10.4]} 36...
Nxf1 {[%clk 0:00:57.9]} 37. Kxf1 {[%clk 0:00:11.3]} 37... cxb4 {[%clk
0:00:57.9]} 38. Qxb4 {[%clk 0:00:11]} 38... Rxe3 {[%clk 0:00:58.4]} 39. c5
{[%clk 0:00:09.9]} 39... dxc5 {[%clk 0:00:56.2]} 40. Qxc5 {[%clk 0:00:10.4]}
40... Re5 {[%clk 0:00:55.8]} 41. Nc4 {[%clk 0:00:09.5]} 41... Rxd5 {[%clk
0:00:55.2]} 42. Qa7 {[%clk 0:00:07.6]} 42... Rd1+ {[%clk 0:00:53.3]} 43. Kf2
{[%clk 0:00:08]} 43... Qd4+ {[%clk 0:00:53]} 44. Qxd4 {[%clk 0:00:07.1]} 44...
Rxd4 {[%clk 0:00:53.9]} 0-1

[Event "Late-Titled-Tuesday-Blitz-April-16-2024"]
[Site "Chess.com"]
[Date "2024.04.16"]
[Round "1"]
[White "ElDivis"]
[Black "GrigorGrigorov"]
[Result "0-1"]
[WhiteElo "2496"]
[BlackElo "2925"]
[TimeControl "180+1"]
[EndTime "14:07:00 PDT"]
[Termination "GrigorGrigorov won by resignation"]

1. e4 {[%clk 0:02:59.2]} 1... c6 {[%clk 0:02:59.4]} 2. d4 {[%clk 0:02:56.2]}
2... d5 {[%clk 0:02:59.4]} 3. e5 {[%clk 0:02:56.6]} 3... Bf5 {[%clk 0:02:59.1]}
4. Nc3 {[%clk 0:02:55.4]} 4... e6 {[%clk 0:02:58.6]} 5. g4 {[%clk 0:02:54.2]}
5... Bg6 {[%clk 0:02:58.5]} 6. Nge2 {[%clk 0:02:54.1]} 6... c5 {[%clk 0:02:57]}
7. h4 {[%clk 0:02:53.9]} 7... h5 {[%clk 0:02:56.6]} 8. Nf4 {[%clk 0:02:45.5]}
8... Bh7 {[%clk 0:02:55.3]} 9. g5 {[%clk 0:02:36.7]} 9... Bf5 {[%clk 0:02:43.2]}
10. dxc5 {[%clk 0:02:16.5]} 10... Bxc5 {[%clk 0:02:38.7]} 11. Bb5+ {[%clk
0:02:14.9]} 11... Nc6 {[%clk 0:02:37.7]} 12. Kf1 {[%clk 0:01:55.9]} 12... g6
{[%clk 0:02:34.3]} 13. Nce2 {[%clk 0:01:55.8]} 13... Ne7 {[%clk 0:02:30.9]} 14.
Nd4 {[%clk 0:01:54.2]} 14... Qb6 {[%clk 0:02:27.1]} 15. Bxc6+ {[%clk 0:01:50.5]}
15... bxc6 {[%clk 0:02:13.6]} 16. c3 {[%clk 0:01:50]} 16... Be4 {[%clk
0:02:03.4]} 17. f3 {[%clk 0:01:35.2]} 17... Bf5 {[%clk 0:01:48.5]} 18. Rh2
{[%clk 0:01:24.6]} 18... Qc7 {[%clk 0:01:40.2]} 19. Re2 {[%clk 0:01:15.1]} 19...
Bb6 {[%clk 0:01:39.2]} 20. a4 {[%clk 0:01:00.6]} 20... a6 {[%clk 0:01:37.5]} 21.
b4 {[%clk 0:00:36.8]} 21... c5 {[%clk 0:01:37.4]} 22. a5 {[%clk 0:00:30.6]}
22... Ba7 {[%clk 0:01:34.8]} 23. Qa4+ {[%clk 0:00:23.9]} 23... Qd7 {[%clk
0:01:34.1]} 24. Qxd7+ {[%clk 0:00:23.2]} 24... Kxd7 {[%clk 0:01:34.2]} 25. Nb3
{[%clk 0:00:19.6]} 25... cxb4 {[%clk 0:01:24.7]} 26. cxb4 {[%clk 0:00:20.5]}
26... Rab8 {[%clk 0:01:24.3]} 27. Bd2 {[%clk 0:00:19]} 27... Rhc8 {[%clk
0:01:21.6]} 28. Rc1 {[%clk 0:00:17.9]} 28... Rc4 {[%clk 0:01:19.1]} 29. Rxc4
{[%clk 0:00:15.7]} 29... dxc4 {[%clk 0:01:20]} 30. Nc5+ {[%clk 0:00:13.5]} 30...
Bxc5 {[%clk 0:01:17.5]} 31. bxc5 {[%clk 0:00:14.4]} 31... Kc6 {[%clk 0:01:17.1]}
32. Kf2 {[%clk 0:00:13.7]} 32... Kxc5 {[%clk 0:01:15.3]} 33. Be3+ {[%clk
0:00:14.3]} 33... Kc6 {[%clk 0:01:14.5]} 34. Rd2 {[%clk 0:00:14.8]} 34... Nd5
{[%clk 0:01:10.5]} 35. Nxd5 {[%clk 0:00:14.8]} 35... exd5 {[%clk 0:01:11.4]} 36.
Bb6 {[%clk 0:00:15.1]} 36... c3 {[%clk 0:01:08.1]} 37. Rd1 {[%clk 0:00:15.6]}
37... c2 {[%clk 0:01:07.3]} 38. Rc1 {[%clk 0:00:15.6]} 38... Kb5 {[%clk
0:01:06.7]} 39. Ke3 {[%clk 0:00:15.8]} 39... Kc4 {[%clk 0:01:04.9]} 40. Kd2
{[%clk 0:00:15.5]} 40... Kb3 {[%clk 0:01:00]} 41. f4 {[%clk 0:00:14.4]} 41...
Rc8 {[%clk 0:01:00.3]} 42. Bd4 {[%clk 0:00:13.8]} 42... Rc4 {[%clk 0:00:58.3]}
43. Be3 {[%clk 0:00:14.1]} 43... d4 {[%clk 0:00:57.9]} 44. Bf2 {[%clk
0:00:14.6]} 44... d3 {[%clk 0:00:57.9]} 45. Be3 {[%clk 0:00:15]} 45... Ra4
{[%clk 0:00:57.2]} 46. Re1 {[%clk 0:00:14.4]} 46... Rxa5 {[%clk 0:00:55.8]} 47.
Bd4 {[%clk 0:00:14.3]} 47... Kc4 {[%clk 0:00:51.8]} 48. Be3 {[%clk 0:00:14.6]}
48... Rb5 {[%clk 0:00:51.7]} 49. Rc1 {[%clk 0:00:14.3]} 49... Rb1 {[%clk
0:00:51.6]} 50. Ke1 {[%clk 0:00:14.8]} 50... Kc3 {[%clk 0:00:50.1]} 51. Bd2+
{[%clk 0:00:15.1]} 51... Kb2 {[%clk 0:00:50.1]} 0-1

[Event "Late-Titled-Tuesday-Blitz-April-16-2024"]
[Site "Chess.com"]
[Date "2024.04.16"]
[Round "1"]
[White "NowInChess"]
[Black "Bykov_Egor"]
[Result "0-1"]
[WhiteElo "2245"]
[BlackElo "2584"]
[TimeControl "180+1"]
[EndTime "14:07:00 PDT"]
[Termination "Bykov_Egor won on time"]

1. e4 {[%clk 0:03:00.9]} 1... e6 {[%clk 0:02:54.8]} 2. d3 {[%clk 0:03:00.6]}
2... d5 {[%clk 0:02:55.4]} 3. Nd2 {[%clk 0:03:01.1]} 3... c5 {[%clk 0:02:55.3]}
4. g3 {[%clk 0:03:00.2]} 4... Nc6 {[%clk 0:02:55.5]} 5. Bg2 {[%clk 0:03:00.5]}
5... Nf6 {[%clk 0:02:55.1]} 6. Ngf3 {[%clk 0:03:00.4]} 6... Be7 {[%clk
0:02:54.8]} 7. O-O {[%clk 0:03:00.3]} 7... b5 {[%clk 0:02:50.5]} 8. Re1 {[%clk
0:02:52.8]} 8... O-O {[%clk 0:02:49.2]} 9. e5 {[%clk 0:02:52.5]} 9... Nd7 {[%clk
0:02:48.8]} 10. h4 {[%clk 0:02:52.3]} 10... Qc7 {[%clk 0:02:38.6]} 11. Qe2
{[%clk 0:02:52.1]} 11... a5 {[%clk 0:02:34.6]} 12. Nf1 {[%clk 0:02:51.9]} 12...
a4 {[%clk 0:02:32.7]} 13. Bf4 {[%clk 0:02:49.3]} 13... a3 {[%clk 0:02:13.4]} 14.
b3 {[%clk 0:02:49.3]} 14... Nd4 {[%clk 0:02:12.5]} 15. Nxd4 {[%clk 0:02:30]}
15... cxd4 {[%clk 0:02:13.4]} 16. Qg4 {[%clk 0:02:19.4]} 16... Re8 {[%clk
0:02:05.9]} 17. Re2 {[%clk 0:02:11]} 17... Bb7 {[%clk 0:01:52.4]} 18. Rae1
{[%clk 0:02:04]} 18... Qc3 {[%clk 0:01:40.9]} 19. Bd2 {[%clk 0:01:44.8]} 19...
Qb2 {[%clk 0:01:27.8]} 20. c4 {[%clk 0:01:44.3]} 20... h5 {[%clk 0:00:59.9]} 21.
Qxh5 {[%clk 0:01:34.1]} 21... Qxa2 {[%clk 0:01:00.2]} 22. Bh6 {[%clk 0:01:11.2]}
22... Qxb3 {[%clk 0:00:58.2]} 23. Qg4 {[%clk 0:01:10.8]} 23... g6 {[%clk
0:00:33.3]} 24. h5 {[%clk 0:01:10.3]} 24... Qxd3 {[%clk 0:00:27]} 25. Be4 {[%clk
0:00:52.7]} 25... dxe4 {[%clk 0:00:27]} 26. hxg6 {[%clk 0:00:52.9]} 26... f5
{[%clk 0:00:23]} 27. exf6 {[%clk 0:00:51.4]} 27... Bxf6 {[%clk 0:00:22.9]} 28.
Qh5 {[%clk 0:00:22.5]} 28... Qf3 {[%clk 0:00:18.9]} 29. Qxf3 {[%clk 0:00:04.1]}
29... exf3 {[%clk 0:00:18.9]} 30. Rxe6 {[%clk 0:00:04.7]} 30... Rxe6 {[%clk
0:00:18.9]} 31. Rxe6 {[%clk 0:00:04.5]} 31... a2 {[%clk 0:00:19.5]} 0-1

[Event "Late-Titled-Tuesday-Blitz-April-16-2024"]
[Site "Chess.com"]
[Date "2024.04.16"]
[Round "1"]
[White "Aygehovit1992"]
[Black "ATM622"]
[Result "1-0"]
[WhiteElo "2771"]
[BlackElo "2426"]
[TimeControl "180+1"]
[EndTime "14:07:01 PDT"]
[Termination "Aygehovit1992 won by resignation"]

1. e4 {[%clk 0:02:43.2]} 1... c6 {[%clk 0:03:00.1]} 2. d4 {[%clk 0:02:42.8]}
2... d5 {[%clk 0:03:00.4]} 3. e5 {[%clk 0:02:43.4]} 3... Bf5 {[%clk 0:02:58.3]}
4. Nf3 {[%clk 0:02:42.7]} 4... e6 {[%clk 0:02:58.3]} 5. Be2 {[%clk 0:02:43.2]}
5... Nd7 {[%clk 0:02:57.8]} 6. O-O {[%clk 0:02:40.9]} 6... Ne7 {[%clk 0:02:53]}
7. Nbd2 {[%clk 0:02:40.6]} 7... Bg6 {[%clk 0:02:52.4]} 8. Nb3 {[%clk 0:02:40.4]}
8... Nf5 {[%clk 0:02:52]} 9. a4 {[%clk 0:02:39.9]} 9... Be7 {[%clk 0:02:49.3]}
10. a5 {[%clk 0:02:40.2]} 10... O-O {[%clk 0:02:48.7]} 11. g4 {[%clk 0:02:40.6]}
11... Nh4 {[%clk 0:02:44.9]} 12. Nxh4 {[%clk 0:02:41.1]} 12... Bxh4 {[%clk
0:02:45.3]} 13. f4 {[%clk 0:02:42]} 13... Be4 {[%clk 0:02:42.3]} 14. Nd2 {[%clk
0:02:37.7]} 14... f5 {[%clk 0:02:40.4]} 15. Nxe4 {[%clk 0:02:37.2]} 15... dxe4
{[%clk 0:02:29.3]} 16. g5 {[%clk 0:02:25.1]} 16... Kh8 {[%clk 0:02:13.3]} 17.
Bc4 {[%clk 0:02:21.8]} 17... Qe8 {[%clk 0:02:12.6]} 18. Ra3 {[%clk 0:02:16.5]}
18... b5 {[%clk 0:01:50.2]} 19. Ba2 {[%clk 0:02:09.9]} 19... h5 {[%clk
0:01:21.5]} 20. Rh3 {[%clk 0:02:05.8]} 20... g6 {[%clk 0:01:19.6]} 21. Rxh4
{[%clk 0:02:05.3]} 21... Rd8 {[%clk 0:01:14.4]} 22. Qe2 {[%clk 0:02:00.3]} 22...
Nb8 {[%clk 0:01:06.9]} 23. c3 {[%clk 0:01:54.2]} 23... Na6 {[%clk 0:01:05.8]}
24. Be3 {[%clk 0:01:45.2]} 24... Rd5 {[%clk 0:00:57.6]} 25. Bxd5 {[%clk
0:01:44.7]} 25... exd5 {[%clk 0:00:57.9]} 26. b3 {[%clk 0:01:44.5]} 26... Qe6
{[%clk 0:00:52.8]} 27. Rc1 {[%clk 0:01:41.9]} 27... Rb8 {[%clk 0:00:48.7]} 28.
c4 {[%clk 0:01:41.8]} 28... b4 {[%clk 0:00:20.2]} 29. cxd5 {[%clk 0:01:39.6]}
29... cxd5 {[%clk 0:00:21.1]} 30. Rh3 {[%clk 0:01:07.9]} 30... Rc8 {[%clk
0:00:15.6]} 31. Rxc8+ {[%clk 0:01:07.1]} 31... Qxc8 {[%clk 0:00:16.5]} 32. Rg3
{[%clk 0:00:57.2]} 32... Kg7 {[%clk 0:00:12.5]} 33. Kf2 {[%clk 0:00:55.3]} 33...
Kf7 {[%clk 0:00:11]} 34. Rg1 {[%clk 0:00:55.4]} 34... Qb7 {[%clk 0:00:05]} 35.
Rc1 {[%clk 0:00:54.3]} 35... Nc7 {[%clk 0:00:05]} 36. Qc2 {[%clk 0:00:48.7]}
36... Nb5 {[%clk 0:00:05.2]} 37. Qc6 {[%clk 0:00:44.5]} 37... Qxc6 {[%clk
0:00:05.3]} 38. Rxc6 {[%clk 0:00:45.1]} 38... Nc3 {[%clk 0:00:03.6]} 39. Rf6+
{[%clk 0:00:44.9]} 39... Kg7 {[%clk 0:00:03.7]} 40. Ra6 {[%clk 0:00:44.9]} 40...
Nd1+ {[%clk 0:00:03.2]} 41. Ke2 {[%clk 0:00:44.7]} 41... Nc3+ {[%clk 0:00:03.5]}
42. Ke1 {[%clk 0:00:44.7]} 1-0

[Event "Late-Titled-Tuesday-Blitz-April-16-2024"]
[Site "Chess.com"]
[Date "2024.04.16"]
[Round "1"]
[White "stasOR4ik"]
[Black "CaspiIsrael"]
[Result "0-1"]
[WhiteElo "2414"]
[BlackElo "2746"]
[TimeControl "180+1"]
[EndTime "14:07:03 PDT"]
[Termination "CaspiIsrael won on time"]

1. c4 {[%clk 0:03:00.2]} 1... e5 {[%clk 0:02:59.5]} 2. Nc3 {[%clk 0:03:00.6]}
2... Bb4 {[%clk 0:02:58]} 3. g3 {[%clk 0:03:00.4]} 3... Bxc3 {[%clk 0:02:56.5]}
4. dxc3 {[%clk 0:03:01.3]} 4... d6 {[%clk 0:02:56.4]} 5. Bg2 {[%clk 0:03:01.6]}
5... Nf6 {[%clk 0:02:55.8]} 6. e4 {[%clk 0:03:01.7]} 6... Be6 {[%clk 0:02:51.4]}
7. Qe2 {[%clk 0:03:00.9]} 7... Nbd7 {[%clk 0:02:48.7]} 8. Nf3 {[%clk 0:03:01.1]}
8... a5 {[%clk 0:02:47.3]} 9. Ng5 {[%clk 0:02:53]} 9... Bg4 {[%clk 0:02:43.4]}
10. f3 {[%clk 0:02:48.2]} 10... Bh5 {[%clk 0:02:43.7]} 11. O-O {[%clk
0:02:44.4]} 11... a4 {[%clk 0:02:41.7]} 12. Nh3 {[%clk 0:02:35.6]} 12... Nc5
{[%clk 0:02:33.5]} 13. Be3 {[%clk 0:02:07.3]} 13... b6 {[%clk 0:02:33]} 14. Rad1
{[%clk 0:02:02.3]} 14... a3 {[%clk 0:02:23.9]} 15. b3 {[%clk 0:02:01.7]} 15...
Ncxe4 {[%clk 0:02:13.4]} 16. g4 {[%clk 0:02:01.3]} 16... Nxc3 {[%clk 0:02:13.1]}
17. Qd2 {[%clk 0:01:39.2]} 17... Nxd1 {[%clk 0:02:12.5]} 18. Rxd1 {[%clk
0:01:37.1]} 18... Bg6 {[%clk 0:02:10.5]} 19. f4 {[%clk 0:01:36]} 19... Nxg4
{[%clk 0:02:07.3]} 20. Bc6+ {[%clk 0:01:29.1]} 20... Ke7 {[%clk 0:02:06.9]} 21.
Bxa8 {[%clk 0:01:27.8]} 21... Qxa8 {[%clk 0:02:06.3]} 22. Bxb6 {[%clk
0:01:20.4]} 22... Rc8 {[%clk 0:01:46.7]} 23. Bxc7 {[%clk 0:01:14.8]} 23... Qa7+
{[%clk 0:01:46.3]} 24. Nf2 {[%clk 0:00:49.6]} 24... Qxc7 {[%clk 0:01:45.1]} 25.
Nxg4 {[%clk 0:00:46.6]} 25... Qc5+ {[%clk 0:01:42.8]} 26. Kf1 {[%clk 0:00:42.7]}
26... Bh5 {[%clk 0:01:38.8]} 27. fxe5 {[%clk 0:00:39.9]} 27... Bxg4 {[%clk
0:01:36.4]} 28. Qg5+ {[%clk 0:00:38.9]} 28... Kf8 {[%clk 0:01:31.5]} 29. Qxg4
{[%clk 0:00:38]} 29... dxe5 {[%clk 0:01:31]} 30. Rd5 {[%clk 0:00:31.2]} 30...
Qc6 {[%clk 0:01:26]} 31. Rxe5 {[%clk 0:00:16.4]} 31... Qh1+ {[%clk 0:01:25.3]}
32. Qg1 {[%clk 0:00:14.6]} 32... Qf3+ {[%clk 0:01:25.2]} 33. Qf2 {[%clk
0:00:14.3]} 33... Qd1+ {[%clk 0:01:15.5]} 34. Re1 {[%clk 0:00:12.9]} 34... Qd3+
{[%clk 0:01:10.9]} 35. Qe2 {[%clk 0:00:13.2]} 35... Qf5+ {[%clk 0:01:11]} 36.
Qf2 {[%clk 0:00:13.4]} 36... Qg6 {[%clk 0:01:04.7]} 37. c5 {[%clk 0:00:06.4]}
37... h5 {[%clk 0:01:02.6]} 38. b4 {[%clk 0:00:06.2]} 38... Kg8 {[%clk 0:01:02]}
39. Re3 {[%clk 0:00:04.1]} 39... Rb8 {[%clk 0:00:50.3]} 40. Rb3 {[%clk
0:00:04.2]} 40... Qc6 {[%clk 0:00:42.5]} 41. Kg1 {[%clk 0:00:02.5]} 41... Rd8
{[%clk 0:00:39.3]} 0-1

[Event "Late-Titled-Tuesday-Blitz-April-16-2024"]
[Site "Chess.com"]
[Date "2024.04.16"]
[Round "1"]
[White "soupeOchoux"]
[Black "CarlosjPineror"]
[Result "0-1"]
[WhiteElo "2399"]
[BlackElo "2714"]
[TimeControl "180+1"]
[EndTime "14:07:04 PDT"]
[Termination "CarlosjPineror won on time"]

1. d4 {[%clk 0:02:34.9]} 1... Nf6 {[%clk 0:02:58.3]} 2. Bg5 {[%clk 0:02:34.2]}
2... d5 {[%clk 0:02:56]} 3. Bxf6 {[%clk 0:02:34.2]} 3... gxf6 {[%clk 0:02:55.9]}
4. e3 {[%clk 0:02:35.1]} 4... c5 {[%clk 0:02:55.3]} 5. c3 {[%clk 0:02:34.6]}
5... Nc6 {[%clk 0:02:48.5]} 6. Nd2 {[%clk 0:02:34.4]} 6... e5 {[%clk 0:02:48.1]}
7. dxe5 {[%clk 0:02:35.3]} 7... fxe5 {[%clk 0:02:46.8]} 8. e4 {[%clk 0:02:35.9]}
8... d4 {[%clk 0:02:45.3]} 9. Ngf3 {[%clk 0:02:35.3]} 9... Be6 {[%clk 0:02:44]}
10. Bb5 {[%clk 0:02:31.5]} 10... Bd6 {[%clk 0:02:41.3]} 11. Qa4 {[%clk 0:02:29]}
11... Qc7 {[%clk 0:02:28.3]} 12. Nc4 {[%clk 0:02:18.7]} 12... Bd7 {[%clk
0:02:04.5]} 13. Nxd6+ {[%clk 0:02:09.8]} 13... Qxd6 {[%clk 0:02:03.7]} 14. Qa3
{[%clk 0:02:06]} 14... O-O-O {[%clk 0:01:59.4]} 15. O-O {[%clk 0:01:59.9]} 15...
Kb8 {[%clk 0:01:55.9]} 16. Rac1 {[%clk 0:01:31.8]} 16... Rhe8 {[%clk 0:01:40]}
17. Rfe1 {[%clk 0:01:24.4]} 17... b6 {[%clk 0:01:32.7]} 18. cxd4 {[%clk
0:01:04.4]} 18... exd4 {[%clk 0:01:33.6]} 19. Qa4 {[%clk 0:00:50.2]} 19... Ne5
{[%clk 0:01:27.5]} 20. Nxe5 {[%clk 0:00:49.2]} 20... Rxe5 {[%clk 0:01:25.7]} 21.
Bxd7 {[%clk 0:00:48.6]} 21... Qxd7 {[%clk 0:01:26.6]} 22. Qc4 {[%clk 0:00:46.4]}
22... d3 {[%clk 0:01:23.2]} 23. Rcd1 {[%clk 0:00:45.6]} 23... Qe6 {[%clk
0:01:18.8]} 24. Qb5 {[%clk 0:00:44.2]} 24... c4 {[%clk 0:01:16.8]} 25. Qb4
{[%clk 0:00:44.5]} 25... Rxe4 {[%clk 0:01:13.3]} 26. Rxe4 {[%clk 0:00:44.3]}
26... Qxe4 {[%clk 0:01:14.2]} 27. Re1 {[%clk 0:00:44.6]} 27... Qc6 {[%clk
0:01:00.4]} 28. g3 {[%clk 0:00:42.2]} 28... d2 {[%clk 0:00:53.2]} 29. Rd1 {[%clk
0:00:42.2]} 29... Qd5 {[%clk 0:00:52.7]} 30. a4 {[%clk 0:00:41.8]} 30... Qe4
{[%clk 0:00:49.8]} 31. a5 {[%clk 0:00:35.7]} 31... Kb7 {[%clk 0:00:44.8]} 32.
axb6 {[%clk 0:00:35.1]} 32... axb6 {[%clk 0:00:45.7]} 33. Qa4 {[%clk 0:00:33.3]}
33... Qe1+ {[%clk 0:00:41.9]} 34. Kg2 {[%clk 0:00:33.7]} 34... Qe2 {[%clk
0:00:37.7]} 35. Ra1 {[%clk 0:00:28.8]} 35... d1=Q {[%clk 0:00:34.4]} 36. Qa7+
{[%clk 0:00:27.5]} 36... Kc6 {[%clk 0:00:30.3]} 37. Rxd1 {[%clk 0:00:26.7]}
37... Qxd1 {[%clk 0:00:27.6]} 0-1